[Event "Titled Tuesday Blitz December 27 Late 2022"]
[White "Domingo Nunez, Ruben"]
[Black "Baskakov, Egor"]
[WhiteFideId "22245570"]
[BlackFideId "24197866"]
[WhiteElo "2416"]
[BlackElo "2215"]
[Result "0-1"]
[Round "06"]
[TimeControl "180+2"]
[Date "2022.12.27"]
[WhiteClock "0:00:06"]
[BlackClock "0:00:10"]

1. c4 {[%clk 0:02:53]}  Nf6 {[%clk 0:02:59]} 2. Nc3 {[%clk 0:02:53]}  e5 {[%clk 0:02:57]} 3. Nf3 {[%clk 0:02:53]}  Nc6 {[%clk 0:02:56]} 4. e4 {[%clk 0:02:53]}  Bc5 {[%clk 0:02:55]} 5. Nxe5 {[%clk 0:02:53]}  Nxe5 {[%clk 0:02:52]} 6. d4 {[%clk 0:02:53]}  Bd6 {[%clk 0:02:53]} 7. dxe5 {[%clk 0:02:54]}  Bxe5 {[%clk 0:02:54]} 8. Bd3 {[%clk 0:02:46]}  O-O {[%clk 0:02:45]} 9. O-O {[%clk 0:02:46]}  c6 {[%clk 0:02:43]} 10. Bg5 {[%clk 0:02:45]}  h6 {[%clk 0:02:39]} 11. Bh4 {[%clk 0:02:45]}  Qb6 {[%clk 0:02:37]} 12. Rb1 {[%clk 0:02:42]}  Qc7 {[%clk 0:02:36]} 13. h3 {[%clk 0:02:42]}  Re8 {[%clk 0:02:24]} 14. Ne2 {[%clk 0:02:37]}  Nxe4 {[%clk 0:02:05]} 15. Bxe4 {[%clk 0:02:33]}  Bh2+ {[%clk 0:02:05]} 16. Kh1 {[%clk 0:02:34]}  Rxe4 {[%clk 0:02:05]} 17. g3 {[%clk 0:02:30]}  Rxh4 {[%clk 0:02:05]} 18. gxh4 {[%clk 0:02:31]}  Be5 {[%clk 0:02:02]} 19. Qd3 {[%clk 0:02:25]}  d6 {[%clk 0:01:56]} 20. f4 {[%clk 0:02:15]}  Bf6 {[%clk 0:01:55]} 21. Rbd1 {[%clk 0:02:14]}  d5 {[%clk 0:01:49]} 22. c5 {[%clk 0:01:17]}  Bxb2 {[%clk 0:01:41]} 23. Nd4 {[%clk 0:01:14]}  Bd7 {[%clk 0:01:18]} 24. Rb1 {[%clk 0:00:57]}  Bxd4 {[%clk 0:01:13]} 25. Qxd4 {[%clk 0:00:57]}  Bf5 {[%clk 0:01:12]} 26. Rb3 {[%clk 0:00:39]}  Re8 {[%clk 0:01:07]} 27. Rg3 {[%clk 0:00:40]}  g6 {[%clk 0:00:58]} 28. h5 {[%clk 0:00:40]}  Re6 {[%clk 0:00:52]} 29. h4 {[%clk 0:00:28]}  Qe7 {[%clk 0:00:52]} 30. hxg6 {[%clk 0:00:22]}  Qxh4+ {[%clk 0:00:44]} 31. Kg2 {[%clk 0:00:23]}  Re2+ {[%clk 0:00:33]} 32. Rf2 {[%clk 0:00:20]}  Be4+ {[%clk 0:00:32]} 33. Kf1 {[%clk 0:00:21]}  Qxg3 {[%clk 0:00:17]} 34. gxf7+ {[%clk 0:00:19]}  Kxf7 {[%clk 0:00:17]} 35. Kxe2 {[%clk 0:00:20]}  Qa3 {[%clk 0:00:13]} 36. f5 {[%clk 0:00:14]}  Qxa2+ {[%clk 0:00:12]} 37. Ke3 {[%clk 0:00:14]}  Qa3+ {[%clk 0:00:11]} 38. Kf4 {[%clk 0:00:15]}  Qh3 {[%clk 0:00:11]} 39. Qe3 {[%clk 0:00:05]}  Qh4+ {[%clk 0:00:09]} 40. Ke5 {[%clk 0:00:04]}  Qf6+ {[%clk 0:00:09]} 41. Kf4 {[%clk 0:00:05]}  Qg5+ {[%clk 0:00:10]} 42. Ke5 {[%clk 0:00:06]}  Qxe3 {[%clk 0:00:10]} 0-1


[Site "https://www.chess.com"]

[Event "Titled Tuesday Blitz December 27 Late 2022"]
[White "Dzierzak, Radoslaw"]
[Black "Barp, Alberto"]
[WhiteFideId "1161407"]
[BlackFideId "872555"]
[WhiteElo "2220"]
[BlackElo "2432"]
[Result "0-1"]
[Round "06"]
[TimeControl "180+2"]
[Date "2022.12.27"]
[WhiteClock "0:00:01"]
[BlackClock "0:00:26"]

1. e4 {[%clk 0:03:00]}  e6 {[%clk 0:02:45]} 2. Nf3 {[%clk 0:03:00]}  d5 {[%clk 0:02:44]} 3. Nc3 {[%clk 0:03:00]}  Nf6 {[%clk 0:02:41]} 4. e5 {[%clk 0:02:59]}  Nfd7 {[%clk 0:02:42]} 5. Ne2 {[%clk 0:02:59]}  c5 {[%clk 0:02:41]} 6. c3 {[%clk 0:02:59]}  Nc6 {[%clk 0:02:29]} 7. d4 {[%clk 0:02:59]}  a6 {[%clk 0:02:23]} 8. a3 {[%clk 0:02:54]}  b5 {[%clk 0:02:22]} 9. b4 {[%clk 0:02:42]}  cxd4 {[%clk 0:02:20]} 10. cxd4 {[%clk 0:02:42]}  Nb6 {[%clk 0:02:21]} 11. Nf4 {[%clk 0:02:39]}  Nc4 {[%clk 0:02:21]} 12. Bd3 {[%clk 0:02:38]}  Qb6 {[%clk 0:02:15]} 13. Bb1 {[%clk 0:02:31]}  a5 {[%clk 0:02:15]} 14. bxa5 {[%clk 0:02:30]}  Qxa5+ {[%clk 0:02:14]} 15. Kf1 {[%clk 0:02:24]}  Qc3 {[%clk 0:02:00]} 16. Ra2 {[%clk 0:02:19]}  Bxa3 {[%clk 0:01:59]} 17. Rc2 {[%clk 0:02:03]}  Qb4 {[%clk 0:01:53]} 18. Be3 {[%clk 0:01:53]}  Qf8 {[%clk 0:01:45]} 19. h4 {[%clk 0:01:33]}  Be7 {[%clk 0:01:43]} 20. h5 {[%clk 0:01:32]}  h6 {[%clk 0:01:42]} 21. Rh3 {[%clk 0:01:31]}  b4 {[%clk 0:01:41]} 22. Ra2 {[%clk 0:01:28]}  Ra3 {[%clk 0:01:35]} 23. Rxa3 {[%clk 0:01:26]}  bxa3 {[%clk 0:01:36]} 24. Qa4 {[%clk 0:01:25]}  Bd7 {[%clk 0:01:31]} 25. Ba2 {[%clk 0:01:03]}  Bd8 {[%clk 0:01:24]} 26. Bxc4 {[%clk 0:00:44]}  dxc4 {[%clk 0:01:23]} 27. Qxc4 {[%clk 0:00:43]}  Qb4 {[%clk 0:01:19]} 28. Qxb4 {[%clk 0:00:30]}  Nxb4 {[%clk 0:01:20]} 29. Nd2 {[%clk 0:00:16]}  Bb5+ {[%clk 0:01:17]} 30. Kg1 {[%clk 0:00:15]}  a2 {[%clk 0:01:12]} 31. Nb3 {[%clk 0:00:15]}  Nc2 {[%clk 0:01:12]} 32. Bc1 {[%clk 0:00:04]}  Bg5 {[%clk 0:00:57]} 33. Bb2 {[%clk 0:00:02]}  Bxf4 {[%clk 0:00:55]} 34. Rc3 {[%clk 0:00:02]}  Kd7 {[%clk 0:00:46]} 35. Rxc2 {[%clk 0:00:02]}  Ra8 {[%clk 0:00:37]} 36. Na1 {[%clk 0:00:02]}  Bc6 {[%clk 0:00:34]} 37. g3 {[%clk 0:00:01]}  Bg5 {[%clk 0:00:34]} 38. f4 {[%clk 0:00:02]}  Be7 {[%clk 0:00:34]} 39. Rd2 {[%clk 0:00:01]}  Rb8 {[%clk 0:00:31]} 40. Kf2 {[%clk 0:00:01]}  Bb4 {[%clk 0:00:30]} 41. Rc2 {[%clk 0:00:01]}  Be4 {[%clk 0:00:30]} 42. Rc4 {[%clk 0:00:01]}  Be1+ {[%clk 0:00:24]} 43. Kxe1 {[%clk 0:00:01]}  Rxb2 {[%clk 0:00:25]} 44. Ra4 {[%clk 0:00:01]}  Rb1+ {[%clk 0:00:25]} 45. Kd2 {[%clk 0:00:01]}  Rxa1 {[%clk 0:00:26]} 46. Ke3 {[%clk 0:00:01]}  Bd5 {[%clk 0:00:26]} 0-1


[Site "https://www.chess.com"]

[Event "Titled Tuesday Blitz December 27 Late 2022"]
[White "Ezat, Mohamed"]
[Black "Oro, Faustino"]
[WhiteFideId "10600906"]
[BlackFideId "20000197"]
[WhiteElo "2402"]
[BlackElo "2269"]
[Result "1-0"]
[Round "06"]
[TimeControl "180+2"]
[Date "2022.12.27"]
[WhiteClock "0:00:47"]
[BlackClock "0:00:55"]

1. d4 {[%clk 0:02:51]}  Nf6 {[%clk 0:02:57]} 2. c4 {[%clk 0:02:51]}  e6 {[%clk 0:02:58]} 3. Nc3 {[%clk 0:02:51]}  Bb4 {[%clk 0:02:58]} 4. e3 {[%clk 0:02:51]}  O-O {[%clk 0:02:57]} 5. a3 {[%clk 0:02:51]}  Bxc3+ {[%clk 0:02:56]} 6. bxc3 {[%clk 0:02:51]}  d5 {[%clk 0:02:57]} 7. cxd5 {[%clk 0:02:49]}  exd5 {[%clk 0:02:57]} 8. Bd3 {[%clk 0:02:50]}  Re8 {[%clk 0:02:56]} 9. f3 {[%clk 0:02:50]}  Nbd7 {[%clk 0:02:55]} 10. Ne2 {[%clk 0:02:50]}  c5 {[%clk 0:02:55]} 11. O-O {[%clk 0:02:51]}  b6 {[%clk 0:02:55]} 12. Ng3 {[%clk 0:02:49]}  Qc7 {[%clk 0:02:53]} 13. Ra2 {[%clk 0:02:48]}  a5 {[%clk 0:02:46]} 14. Re2 {[%clk 0:02:47]}  Ba6 {[%clk 0:02:35]} 15. Bxa6 {[%clk 0:02:46]}  Rxa6 {[%clk 0:02:36]} 16. e4 {[%clk 0:02:45]}  dxe4 {[%clk 0:02:28]} 17. fxe4 {[%clk 0:02:44]}  cxd4 {[%clk 0:02:23]} 18. cxd4 {[%clk 0:02:43]}  Qc4 {[%clk 0:02:24]} 19. Rc2 {[%clk 0:01:45]}  Qb5 {[%clk 0:02:05]} 20. e5 {[%clk 0:01:31]}  Nd5 {[%clk 0:02:01]} 21. Nf5 {[%clk 0:01:32]}  Rf8 {[%clk 0:01:37]} 22. Qg4 {[%clk 0:01:28]}  g6 {[%clk 0:01:33]} 23. Nh6+ {[%clk 0:01:27]}  Kg7 {[%clk 0:01:32]} 24. Rcf2 {[%clk 0:01:20]}  f6 {[%clk 0:01:11]} 25. e6 {[%clk 0:01:08]}  Nb8 {[%clk 0:01:07]} 26. Nf5+ {[%clk 0:00:54]}  Kh8 {[%clk 0:01:01]} 27. Bh6 {[%clk 0:00:47]}  Rg8 {[%clk 0:00:55]} 28. Nd6 {[%clk 0:00:47]} 1-0


[Site "https://www.chess.com"]

[Event "Titled Tuesday Blitz December 27 Late 2022"]
[White "Finkelstein, Alan"]
[Black "Harish, Neeraj"]
[WhiteFideId "30950961"]
[BlackFideId "30958130"]
[WhiteElo "2152"]
[BlackElo "2232"]
[Result "1-0"]
[Round "06"]
[TimeControl "180+2"]
[Date "2022.12.27"]
[WhiteClock "0:01:15"]
[BlackClock "0:00:20"]

1. d4 {[%clk 0:03:00]}  Nf6 {[%clk 0:02:56]} 2. c4 {[%clk 0:03:00]}  g6 {[%clk 0:02:57]} 3. g3 {[%clk 0:03:00]}  Bg7 {[%clk 0:02:55]} 4. Bg2 {[%clk 0:03:00]}  d5 {[%clk 0:02:56]} 5. cxd5 {[%clk 0:03:00]}  Nxd5 {[%clk 0:02:57]} 6. e4 {[%clk 0:03:01]}  Nb6 {[%clk 0:02:57]} 7. Ne2 {[%clk 0:03:02]}  O-O {[%clk 0:02:55]} 8. O-O {[%clk 0:03:02]}  Nc6 {[%clk 0:02:51]} 9. d5 {[%clk 0:03:02]}  Na5 {[%clk 0:02:44]} 10. Nbc3 {[%clk 0:03:02]}  c6 {[%clk 0:02:33]} 11. b3 {[%clk 0:03:02]}  cxd5 {[%clk 0:02:25]} 12. exd5 {[%clk 0:03:03]}  Bf5 {[%clk 0:01:59]} 13. Bd2 {[%clk 0:03:02]}  Rc8 {[%clk 0:01:52]} 14. Rc1 {[%clk 0:03:02]}  Nd7 {[%clk 0:01:40]} 15. Re1 {[%clk 0:02:27]}  b6 {[%clk 0:01:37]} 16. Nb5 {[%clk 0:02:21]}  a6 {[%clk 0:01:28]} 17. Nbd4 {[%clk 0:01:54]}  Bd3 {[%clk 0:00:48]} 18. Rxc8 {[%clk 0:01:17]}  Qxc8 {[%clk 0:00:45]} 19. Bxa5 {[%clk 0:01:16]}  Bxe2 {[%clk 0:00:44]} 20. Rxe2 {[%clk 0:01:16]}  bxa5 {[%clk 0:00:41]} 21. Nc6 {[%clk 0:01:16]}  Qb8 {[%clk 0:00:20]} 22. Nxb8 {[%clk 0:01:15]} 1-0


[Site "https://www.chess.com"]

[Event "Titled Tuesday Blitz December 27 Late 2022"]
[White "Garcia, Gabriel Gonzaga"]
[Black "Jones, Gawain C B"]
[WhiteFideId "2138956"]
[BlackFideId "409561"]
[WhiteElo "2091"]
[BlackElo "2618"]
[Result "0-1"]
[Round "06"]
[TimeControl "180+2"]
[Date "2022.12.27"]
[WhiteClock "0:01:06"]
[BlackClock "0:02:16"]

1. e4 {[%clk 0:03:00]}  c6 {[%clk 0:02:58]} 2. Nf3 {[%clk 0:03:00]}  d5 {[%clk 0:02:58]} 3. Nc3 {[%clk 0:03:00]}  dxe4 {[%clk 0:02:58]} 4. Nxe4 {[%clk 0:03:01]}  Nf6 {[%clk 0:02:58]} 5. Ng3 {[%clk 0:03:01]}  h5 {[%clk 0:02:58]} 6. h3 {[%clk 0:03:01]}  h4 {[%clk 0:02:58]} 7. Ne2 {[%clk 0:03:01]}  Bf5 {[%clk 0:02:55]} 8. Ned4 {[%clk 0:03:01]}  Bh7 {[%clk 0:02:52]} 9. Bc4 {[%clk 0:03:01]}  e5 {[%clk 0:02:50]} 10. Qe2 {[%clk 0:03:01]}  Be7 {[%clk 0:02:49]} 11. Qxe5 {[%clk 0:02:46]}  O-O {[%clk 0:02:48]} 12. O-O {[%clk 0:02:36]}  Nbd7 {[%clk 0:02:46]} 13. Qf4 {[%clk 0:02:09]}  Nb6 {[%clk 0:02:44]} 14. Bb3 {[%clk 0:01:55]}  c5 {[%clk 0:02:41]} 15. Ne6 {[%clk 0:01:28]}  fxe6 {[%clk 0:02:40]} 16. Bxe6+ {[%clk 0:01:29]}  Kh8 {[%clk 0:02:40]} 17. Ng5 {[%clk 0:01:29]}  Ne4 {[%clk 0:02:22]} 18. Nf7+ {[%clk 0:01:21]}  Rxf7 {[%clk 0:02:22]} 19. Qxf7 {[%clk 0:01:16]}  Ng5 {[%clk 0:02:21]} 20. Qh5 {[%clk 0:01:09]}  Nxe6 {[%clk 0:02:21]} 21. d4 {[%clk 0:01:10]}  Nxd4 {[%clk 0:02:17]} 22. Be3 {[%clk 0:01:07]}  Nxc2 {[%clk 0:02:16]} 23. Rad1 {[%clk 0:01:06]}  Qe8 {[%clk 0:02:16]} 0-1


[Site "https://www.chess.com"]

[Event "Titled Tuesday Blitz December 27 Late 2022"]
[White "Gorodetzky, David"]
[Black "Gubajdullin, Alexei"]
[WhiteFideId "2813416"]
[BlackFideId "4141202"]
[WhiteElo "2485"]
[BlackElo "2285"]
[Result "0-1"]
[Round "06"]
[TimeControl "180+2"]
[Date "2022.12.27"]
[WhiteClock "0:00:02"]
[BlackClock "0:00:20"]

1. d4 {[%clk 0:02:56]}  Nf6 {[%clk 0:02:59]} 2. c4 {[%clk 0:02:56]}  g6 {[%clk 0:02:59]} 3. Nc3 {[%clk 0:02:53]}  Bg7 {[%clk 0:02:59]} 4. e4 {[%clk 0:02:54]}  d6 {[%clk 0:02:59]} 5. Be2 {[%clk 0:02:54]}  O-O {[%clk 0:02:59]} 6. Be3 {[%clk 0:02:54]}  Na6 {[%clk 0:02:59]} 7. Nf3 {[%clk 0:02:51]}  e5 {[%clk 0:02:59]} 8. O-O {[%clk 0:02:51]}  c6 {[%clk 0:02:58]} 9. Qc2 {[%clk 0:02:47]}  Ng4 {[%clk 0:02:55]} 10. Bg5 {[%clk 0:02:47]}  f6 {[%clk 0:02:55]} 11. Bd2 {[%clk 0:02:37]}  exd4 {[%clk 0:02:54]} 12. Nxd4 {[%clk 0:02:36]}  f5 {[%clk 0:02:54]} 13. Bxg4 {[%clk 0:02:34]}  fxg4 {[%clk 0:02:46]} 14. Be3 {[%clk 0:02:31]}  Nc5 {[%clk 0:02:43]} 15. Rad1 {[%clk 0:02:31]}  Qh4 {[%clk 0:02:37]} 16. Nde2 {[%clk 0:02:01]}  Be5 {[%clk 0:02:27]} 17. g3 {[%clk 0:02:00]}  Qe7 {[%clk 0:02:25]} 18. Bd4 {[%clk 0:01:47]}  Ne6 {[%clk 0:02:23]} 19. Bxe5 {[%clk 0:01:43]}  dxe5 {[%clk 0:02:23]} 20. Qd2 {[%clk 0:01:41]}  Rd8 {[%clk 0:02:08]} 21. Qe3 {[%clk 0:01:38]}  Ng5 {[%clk 0:02:02]} 22. Rxd8+ {[%clk 0:01:35]}  Qxd8 {[%clk 0:02:02]} 23. Rd1 {[%clk 0:01:35]}  Qf6 {[%clk 0:02:00]} 24. h4 {[%clk 0:01:02]}  Nh3+ {[%clk 0:01:32]} 25. Kg2 {[%clk 0:01:01]}  Be6 {[%clk 0:01:30]} 26. b3 {[%clk 0:00:22]}  Rf8 {[%clk 0:01:26]} 27. Qxa7 {[%clk 0:00:05]}  g5 {[%clk 0:00:28]} 28. hxg5 {[%clk 0:00:04]}  Qxg5 {[%clk 0:00:28]} 29. Rf1 {[%clk 0:00:05]}  Nf4+ {[%clk 0:00:25]} 30. gxf4 {[%clk 0:00:05]}  exf4 {[%clk 0:00:25]} 31. Nd4 {[%clk 0:00:05]}  f3+ {[%clk 0:00:24]} 32. Kg1 {[%clk 0:00:02]}  g3 {[%clk 0:00:20]} 33. Nxe6 {[%clk 0:00:02]}  Qh4 {[%clk 0:00:20]} 0-1


[Site "https://www.chess.com"]

[Event "Titled Tuesday Blitz December 27 Late 2022"]
[White "Gurevich, Dmitry"]
[Black "Battlecruiser_Operational"]
[WhiteFideId "2000407"]
[WhiteElo "2393"]
[BlackElo "2417"]
[Result "0-1"]
[Round "06"]
[TimeControl "180+2"]
[Date "2022.12.27"]
[WhiteClock "0:00:15"]
[BlackClock "0:01:28"]

1. d4 {[%clk 0:03:00]}  d5 {[%clk 0:02:59]} 2. c4 {[%clk 0:03:00]}  c6 {[%clk 0:02:59]} 3. cxd5 {[%clk 0:03:00]}  cxd5 {[%clk 0:02:59]} 4. Bg5 {[%clk 0:03:01]}  Nf6 {[%clk 0:02:54]} 5. Bxf6 {[%clk 0:03:00]}  gxf6 {[%clk 0:02:55]} 6. e3 {[%clk 0:02:59]}  Nc6 {[%clk 0:02:55]} 7. Nc3 {[%clk 0:02:57]}  e6 {[%clk 0:02:53]} 8. g3 {[%clk 0:02:54]}  a6 {[%clk 0:02:51]} 9. Bg2 {[%clk 0:02:53]}  Bd6 {[%clk 0:02:50]} 10. Nge2 {[%clk 0:02:53]}  f5 {[%clk 0:02:50]} 11. O-O {[%clk 0:02:52]}  O-O {[%clk 0:02:50]} 12. Rc1 {[%clk 0:02:46]}  Bd7 {[%clk 0:02:49]} 13. Qd3 {[%clk 0:02:41]}  Rc8 {[%clk 0:02:43]} 14. a3 {[%clk 0:02:37]}  b5 {[%clk 0:02:43]} 15. b4 {[%clk 0:02:30]}  Ne7 {[%clk 0:02:25]} 16. Rc2 {[%clk 0:02:26]}  Rc4 {[%clk 0:02:25]} 17. Nc1 {[%clk 0:02:24]}  a5 {[%clk 0:02:24]} 18. N3a2 {[%clk 0:02:10]}  Qc7 {[%clk 0:02:12]} 19. Rxc4 {[%clk 0:02:07]}  bxc4 {[%clk 0:02:13]} 20. Qc3 {[%clk 0:01:57]}  axb4 {[%clk 0:02:10]} 21. Nxb4 {[%clk 0:01:48]}  Ra8 {[%clk 0:02:09]} 22. Ne2 {[%clk 0:01:43]}  Qa5 {[%clk 0:02:05]} 23. Nc2 {[%clk 0:01:35]}  Ba4 {[%clk 0:02:01]} 24. Qxa5 {[%clk 0:01:31]}  Rxa5 {[%clk 0:02:02]} 25. Nb4 {[%clk 0:01:30]}  Bb3 {[%clk 0:01:59]} 26. Nc1 {[%clk 0:01:01]}  Rxa3 {[%clk 0:01:54]} 27. Nxb3 {[%clk 0:01:00]}  Bxb4 {[%clk 0:01:39]} 28. Na1 {[%clk 0:00:39]}  Ra2 {[%clk 0:01:33]} 29. Rc1 {[%clk 0:00:19]}  Bd2 {[%clk 0:01:29]} 30. Rd1 {[%clk 0:00:15]}  Bc3 {[%clk 0:01:28]} 0-1


[Site "https://www.chess.com"]

[Event "Titled Tuesday Blitz December 27 Late 2022"]
[White "Hernandez Jimenez, Alexander Andres"]
[Black "Guevara Sanchez, Erick Marvin"]
[WhiteFideId "3900452"]
[BlackFideId "6700136"]
[WhiteElo "2134"]
[BlackElo "2073"]
[Result "0-1"]
[Round "06"]
[TimeControl "180+2"]
[Date "2022.12.27"]
[WhiteClock "0:00:07"]
[BlackClock "0:01:13"]

1. e4 {[%clk 0:03:00]}  c5 {[%clk 0:03:00]} 2. Nf3 {[%clk 0:03:00]}  Nc6 {[%clk 0:03:00]} 3. c3 {[%clk 0:03:01]}  e6 {[%clk 0:02:59]} 4. d4 {[%clk 0:03:01]}  d5 {[%clk 0:03:00]} 5. exd5 {[%clk 0:03:00]}  exd5 {[%clk 0:03:00]} 6. Bb5 {[%clk 0:03:01]}  cxd4 {[%clk 0:02:57]} 7. Nxd4 {[%clk 0:02:54]}  Qc7 {[%clk 0:02:47]} 8. O-O {[%clk 0:02:52]}  Be7 {[%clk 0:02:46]} 9. Re1 {[%clk 0:02:50]}  a6 {[%clk 0:02:29]} 10. Bd3 {[%clk 0:01:35]}  Nf6 {[%clk 0:02:25]} 11. Qe2 {[%clk 0:01:29]}  Nxd4 {[%clk 0:02:25]} 12. cxd4 {[%clk 0:01:28]}  Be6 {[%clk 0:02:25]} 13. Nc3 {[%clk 0:01:26]}  O-O {[%clk 0:02:19]} 14. Bg5 {[%clk 0:01:26]}  h6 {[%clk 0:02:17]} 15. Bh4 {[%clk 0:01:23]}  Rfe8 {[%clk 0:02:06]} 16. Rac1 {[%clk 0:01:22]}  Qd7 {[%clk 0:02:06]} 17. Qf3 {[%clk 0:01:13]}  Rac8 {[%clk 0:01:55]} 18. Bg3 {[%clk 0:00:58]}  Bg4 {[%clk 0:01:51]} 19. Qf4 {[%clk 0:00:57]}  Nh5 {[%clk 0:01:32]} 20. Qe5 {[%clk 0:00:50]}  Bg5 {[%clk 0:01:17]} 21. Qxd5 {[%clk 0:00:11]}  Qxd5 {[%clk 0:01:14]} 22. Rxe8+ {[%clk 0:00:10]}  Rxe8 {[%clk 0:01:14]} 23. Nxd5 {[%clk 0:00:07]}  Bxc1 {[%clk 0:01:13]} 0-1


[Site "https://www.chess.com"]

[Event "Titled Tuesday Blitz December 27 Late 2022"]
[White "Hoffmann, Asa"]
[Black "Silvestre, Christian"]
[WhiteFideId "2001470"]
[BlackFideId "30956269"]
[WhiteElo "2185"]
[BlackElo "1942"]
[Result "0-1"]
[Round "06"]
[TimeControl "180+2"]
[Date "2022.12.27"]
[WhiteClock "0:00:01"]
[BlackClock "0:01:06"]

1. d4 {[%clk 0:02:49]}  c5 {[%clk 0:02:59]} 2. dxc5 {[%clk 0:02:46]}  Nf6 {[%clk 0:02:59]} 3. Nc3 {[%clk 0:02:44]}  g6 {[%clk 0:02:59]} 4. e4 {[%clk 0:02:44]}  Qa5 {[%clk 0:02:57]} 5. Bd3 {[%clk 0:02:35]}  Qxc5 {[%clk 0:02:54]} 6. Be3 {[%clk 0:02:34]}  Qa5 {[%clk 0:02:54]} 7. f3 {[%clk 0:02:32]}  Nc6 {[%clk 0:02:48]} 8. Ne2 {[%clk 0:02:30]}  d5 {[%clk 0:02:48]} 9. exd5 {[%clk 0:02:24]}  Nxd5 {[%clk 0:02:46]} 10. Bd2 {[%clk 0:02:24]}  Bg7 {[%clk 0:02:41]} 11. Bc4 {[%clk 0:02:12]}  Nxc3 {[%clk 0:02:38]} 12. Bxc3 {[%clk 0:02:11]}  Bxc3+ {[%clk 0:02:37]} 13. Nxc3 {[%clk 0:02:11]}  O-O {[%clk 0:02:37]} 14. Qe2 {[%clk 0:02:07]}  Bf5 {[%clk 0:02:35]} 15. O-O-O {[%clk 0:02:04]}  Rac8 {[%clk 0:02:28]} 16. g4 {[%clk 0:02:00]}  b5 {[%clk 0:02:01]} 17. Bxb5 {[%clk 0:01:55]}  Be6 {[%clk 0:02:00]} 18. Qe4 {[%clk 0:01:37]}  Nb4 {[%clk 0:01:55]} 19. a3 {[%clk 0:01:36]}  Na2+ {[%clk 0:01:40]} 20. Nxa2 {[%clk 0:01:32]}  Qxb5 {[%clk 0:01:38]} 21. Nc3 {[%clk 0:01:29]}  Rxc3 {[%clk 0:01:38]} 22. bxc3 {[%clk 0:01:28]}  Qg5+ {[%clk 0:01:36]} 23. Rd2 {[%clk 0:01:21]}  Rb8 {[%clk 0:01:34]} 24. c4 {[%clk 0:01:01]}  Qa5 {[%clk 0:01:32]} 25. Qd3 {[%clk 0:00:38]}  Bxc4 {[%clk 0:01:15]} 26. Qxc4 {[%clk 0:00:23]}  Qxa3+ {[%clk 0:01:14]} 27. Kd1 {[%clk 0:00:23]}  Rb1+ {[%clk 0:01:14]} 28. Ke2 {[%clk 0:00:22]}  Rxh1 {[%clk 0:01:15]} 29. Qf4 {[%clk 0:00:05]}  Qa6+ {[%clk 0:01:13]} 30. Kf2 {[%clk 0:00:04]}  Qf1+ {[%clk 0:01:09]} 31. Ke3 {[%clk 0:00:01]}  Qe1+ {[%clk 0:01:06]} 0-1


[Site "https://www.chess.com"]

[Event "Titled Tuesday Blitz December 27 Late 2022"]
[White "Holt, Conrad"]
[Black "Pershin, Denis"]
[WhiteFideId "2034387"]
[BlackFideId "24165506"]
[WhiteElo "2540"]
[BlackElo "2366"]
[Result "1-0"]
[Round "06"]
[TimeControl "180+2"]
[Date "2022.12.27"]
[WhiteClock "0:00:52"]
[BlackClock "0:00:02"]

1. d4 {[%clk 0:03:00]}  Nf6 {[%clk 0:02:55]} 2. c4 {[%clk 0:03:01]}  e6 {[%clk 0:02:49]} 3. Nc3 {[%clk 0:03:00]}  d5 {[%clk 0:02:42]} 4. cxd5 {[%clk 0:03:00]}  exd5 {[%clk 0:02:43]} 5. Bg5 {[%clk 0:03:00]}  c6 {[%clk 0:02:40]} 6. e3 {[%clk 0:02:58]}  Bf5 {[%clk 0:02:40]} 7. Qf3 {[%clk 0:02:57]}  Bg6 {[%clk 0:02:41]} 8. Bxf6 {[%clk 0:02:57]}  Qxf6 {[%clk 0:02:42]} 9. Qxf6 {[%clk 0:02:57]}  gxf6 {[%clk 0:02:42]} 10. Nf3 {[%clk 0:02:57]}  a5 {[%clk 0:02:39]} 11. Nh4 {[%clk 0:02:55]}  Na6 {[%clk 0:02:38]} 12. Kd2 {[%clk 0:02:44]}  Nc7 {[%clk 0:02:37]} 13. Be2 {[%clk 0:02:38]}  Bd6 {[%clk 0:02:30]} 14. f4 {[%clk 0:02:35]}  Be4 {[%clk 0:02:06]} 15. Bg4 {[%clk 0:02:32]}  Rg8 {[%clk 0:02:00]} 16. Nxe4 {[%clk 0:02:31]}  dxe4 {[%clk 0:01:57]} 17. Bf5 {[%clk 0:02:32]}  Bb4+ {[%clk 0:01:37]} 18. Ke2 {[%clk 0:02:31]}  Kf8 {[%clk 0:01:38]} 19. Bxe4 {[%clk 0:02:29]}  Re8 {[%clk 0:01:37]} 20. Kf3 {[%clk 0:02:29]}  Bd2 {[%clk 0:01:11]} 21. Rhd1 {[%clk 0:02:14]}  Bxe3 {[%clk 0:01:03]} 22. Kxe3 {[%clk 0:02:13]}  Rg4 {[%clk 0:01:04]} 23. Nf5 {[%clk 0:02:12]}  Nd5+ {[%clk 0:01:00]} 24. Kd3 {[%clk 0:02:09]}  Nxf4+ {[%clk 0:01:00]} 25. Kc4 {[%clk 0:02:06]}  Rxe4 {[%clk 0:00:59]} 26. g3 {[%clk 0:02:02]}  Nd5 {[%clk 0:00:47]} 27. Kc5 {[%clk 0:01:54]}  Rg5 {[%clk 0:00:45]} 28. Nd6 {[%clk 0:01:45]}  Re6 {[%clk 0:00:44]} 29. h4 {[%clk 0:01:37]}  Rh5 {[%clk 0:00:16]} 30. g4 {[%clk 0:01:19]}  Rxh4 {[%clk 0:00:17]} 31. Nxb7 {[%clk 0:01:18]}  Rxg4 {[%clk 0:00:15]} 32. Nxa5 {[%clk 0:01:18]}  Ne3 {[%clk 0:00:16]} 33. Rg1 {[%clk 0:01:11]}  h5 {[%clk 0:00:03]} 34. Nxc6 {[%clk 0:01:07]}  Rg5+ {[%clk 0:00:02]} 35. Rxg5 {[%clk 0:01:06]}  fxg5 {[%clk 0:00:03]} 36. d5 {[%clk 0:01:04]}  Rf6 {[%clk 0:00:02]} 37. Re1 {[%clk 0:00:58]}  Nf5 {[%clk 0:00:01]} 38. a4 {[%clk 0:00:52]}  g4 {[%clk 0:00:01]} 39. a5 {[%clk 0:00:53]}  Nd6 {[%clk 0:00:02]} 40. a6 {[%clk 0:00:52]} 1-0


[Site "https://www.chess.com"]

[Event "Titled Tuesday Blitz December 27 Late 2022"]
[White "Ibadov, Dashgyn"]
[Black "Kleiman, Jake"]
[WhiteFideId "24107514"]
[BlackFideId "2020041"]
[WhiteElo "2391"]
[BlackElo "2399"]
[Result "1/2-1/2"]
[Round "06"]
[TimeControl "180+2"]
[Date "2022.12.27"]
[WhiteClock "0:02:14"]
[BlackClock "0:01:40"]

1. d4 {[%clk 0:03:00]}  Nf6 {[%clk 0:02:59]} 2. c4 {[%clk 0:03:00]}  e6 {[%clk 0:03:00]} 3. Nf3 {[%clk 0:02:59]}  Bb4+ {[%clk 0:03:01]} 4. Nc3 {[%clk 0:02:59]}  c5 {[%clk 0:03:01]} 5. g3 {[%clk 0:02:53]}  Bxc3+ {[%clk 0:03:01]} 6. bxc3 {[%clk 0:02:52]}  Qa5 {[%clk 0:03:02]} 7. Qd3 {[%clk 0:02:52]}  b6 {[%clk 0:03:02]} 8. Bg2 {[%clk 0:02:51]}  Bb7 {[%clk 0:03:03]} 9. O-O {[%clk 0:02:52]}  Qa6 {[%clk 0:03:03]} 10. d5 {[%clk 0:02:43]}  O-O {[%clk 0:03:01]} 11. e4 {[%clk 0:02:42]}  exd5 {[%clk 0:02:56]} 12. e5 {[%clk 0:02:29]}  Ne4 {[%clk 0:02:19]} 13. Ng5 {[%clk 0:02:22]}  Nxg5 {[%clk 0:02:12]} 14. Bxg5 {[%clk 0:02:23]}  dxc4 {[%clk 0:02:13]} 15. Qe3 {[%clk 0:02:21]}  Bxg2 {[%clk 0:02:10]} 16. Bf6 {[%clk 0:02:14]}  gxf6 {[%clk 0:02:03]} 17. Qh6 {[%clk 0:02:11]}  fxe5 {[%clk 0:01:38]} 18. Qg5+ {[%clk 0:02:10]}  Kh8 {[%clk 0:01:38]} 19. Qf6+ {[%clk 0:02:11]}  Kg8 {[%clk 0:01:39]} 20. Qg5+ {[%clk 0:02:12]}  Kh8 {[%clk 0:01:39]} 21. Qf6+ {[%clk 0:02:13]}  Kg8 {[%clk 0:01:40]} 22. Qg5+ {[%clk 0:02:14]} 1/2-1/2


[Site "https://www.chess.com"]